[Event "Titled Tuesday Blitz May 17 Late 2022"]
[White "Svane, Frederik"]
[Black "Domingo Nunez, Alejandro"]
[WhiteFideId "12923044"]
[BlackFideId "22245561"]
[WhiteElo "2459"]
[BlackElo "2215"]
[Result "1-0"]
[Round "06"]
[TimeControl "180+1"]
[Date "2022.05.17"]
[WhiteClock "0:01:15"]
[BlackClock "0:00:01"]

1. e4 {[%clk 0:03:00]}  g6 {[%clk 0:02:59]} 2. d4 {[%clk 0:03:00]}  Bg7 {[%clk 0:03:00]} 3. Nf3 {[%clk 0:03:01]}  c6 {[%clk 0:03:01]} 4. Bd3 {[%clk 0:03:01]}  d5 {[%clk 0:03:01]} 5. exd5 {[%clk 0:03:02]}  cxd5 {[%clk 0:03:02]} 6. O-O {[%clk 0:03:02]}  Nc6 {[%clk 0:03:03]} 7. Re1 {[%clk 0:03:00]}  Bg4 {[%clk 0:03:03]} 8. c3 {[%clk 0:03:00]}  e6 {[%clk 0:03:01]} 9. Nbd2 {[%clk 0:03:00]}  Nge7 {[%clk 0:03:00]} 10. h3 {[%clk 0:03:00]}  Bf5 {[%clk 0:02:59]} 11. Bf1 {[%clk 0:03:00]}  h5 {[%clk 0:02:59]} 12. Nb3 {[%clk 0:02:57]}  b6 {[%clk 0:02:53]} 13. Bg5 {[%clk 0:02:55]}  Qd6 {[%clk 0:02:48]} 14. a4 {[%clk 0:02:54]}  O-O {[%clk 0:02:04]} 15. Qc1 {[%clk 0:02:39]}  Rac8 {[%clk 0:01:53]} 16. Bf4 {[%clk 0:02:38]}  Qd8 {[%clk 0:01:49]} 17. Qd2 {[%clk 0:02:37]}  Be4 {[%clk 0:01:39]} 18. Ng5 {[%clk 0:02:33]}  Bf5 {[%clk 0:01:18]} 19. Qd1 {[%clk 0:02:33]}  Bf6 {[%clk 0:01:12]} 20. g4 {[%clk 0:02:23]}  hxg4 {[%clk 0:01:12]} 21. hxg4 {[%clk 0:02:24]}  Be4 {[%clk 0:01:08]} 22. f3 {[%clk 0:02:16]}  e5 {[%clk 0:00:37]} 23. dxe5 {[%clk 0:02:10]}  Bxe5 {[%clk 0:00:28]} 24. Bxe5 {[%clk 0:01:57]}  Nxe5 {[%clk 0:00:29]} 25. fxe4 {[%clk 0:01:57]}  Re8 {[%clk 0:00:07]} 26. Bg2 {[%clk 0:01:47]}  Kg7 {[%clk 0:00:05]} 27. exd5 {[%clk 0:01:46]}  Ng8 {[%clk 0:00:05]} 28. Ne4 {[%clk 0:01:44]}  Qh4 {[%clk 0:00:05]} 29. Qd4 {[%clk 0:01:40]}  f6 {[%clk 0:00:04]} 30. Nd6 {[%clk 0:01:37]}  Nxg4 {[%clk 0:00:04]} 31. Nxe8+ {[%clk 0:01:38]}  Rxe8 {[%clk 0:00:04]} 32. Rxe8 {[%clk 0:01:38]}  Qh2+ {[%clk 0:00:04]} 33. Kf1 {[%clk 0:01:38]}  Qg3 {[%clk 0:00:04]} 34. Nd2 {[%clk 0:01:17]}  Nh2+ {[%clk 0:00:05]} 35. Kg1 {[%clk 0:01:17]}  Ng4 {[%clk 0:00:02]} 36. Rae1 {[%clk 0:01:16]}  Qh2+ {[%clk 0:00:01]} 37. Kf1 {[%clk 0:01:16]}  Qh4 {[%clk 0:00:01]} 38. Nf3 {[%clk 0:01:15]} 1-0


[Site "https://www.chess.com"]

[Event "Titled Tuesday Blitz May 17 Late 2022"]
[White "Tanenbaum, Zachary"]
[Black "Bluebaum, Matthias"]
[WhiteFideId "2060850"]
[BlackFideId "24651516"]
[WhiteElo "2168"]
[BlackElo "2556"]
[Result "0-1"]
[Round "06"]
[TimeControl "180+1"]
[Date "2022.05.17"]
[WhiteClock "0:00:35"]
[BlackClock "0:00:41"]

1. e4 {[%clk 0:02:58]}  c6 {[%clk 0:02:59]} 2. d4 {[%clk 0:02:59]}  d5 {[%clk 0:03:00]} 3. exd5 {[%clk 0:03:00]}  cxd5 {[%clk 0:03:01]} 4. Bd3 {[%clk 0:03:00]}  Nc6 {[%clk 0:03:01]} 5. c3 {[%clk 0:03:01]}  Qc7 {[%clk 0:03:02]} 6. Bg5 {[%clk 0:03:01]}  e6 {[%clk 0:02:56]} 7. Nf3 {[%clk 0:02:59]}  Bd6 {[%clk 0:02:52]} 8. Nbd2 {[%clk 0:02:58]}  Nge7 {[%clk 0:02:53]} 9. Bh4 {[%clk 0:02:57]}  f6 {[%clk 0:02:51]} 10. c4 {[%clk 0:02:39]}  O-O {[%clk 0:02:47]} 11. O-O {[%clk 0:02:37]}  Nb4 {[%clk 0:02:37]} 12. Be2 {[%clk 0:02:37]}  Nf5 {[%clk 0:02:34]} 13. Bg3 {[%clk 0:02:36]}  Nxg3 {[%clk 0:02:32]} 14. hxg3 {[%clk 0:02:36]}  b6 {[%clk 0:02:26]} 15. Qb3 {[%clk 0:02:27]}  Bb7 {[%clk 0:02:15]} 16. a3 {[%clk 0:02:26]}  Nc6 {[%clk 0:02:15]} 17. Rac1 {[%clk 0:02:21]}  Qe7 {[%clk 0:02:05]} 18. Rfe1 {[%clk 0:02:18]}  Rfe8 {[%clk 0:01:53]} 19. Qa2 {[%clk 0:02:05]}  Qf7 {[%clk 0:01:47]} 20. cxd5 {[%clk 0:01:58]}  exd5 {[%clk 0:01:48]} 21. Ne4 {[%clk 0:01:47]}  Rxe4 {[%clk 0:01:40]} 22. Bb5 {[%clk 0:01:38]}  Rxe1+ {[%clk 0:01:38]} 23. Rxe1 {[%clk 0:01:37]}  a6 {[%clk 0:01:38]} 24. Bd3 {[%clk 0:01:37]}  g6 {[%clk 0:01:33]} 25. Bc2 {[%clk 0:01:37]}  Kg7 {[%clk 0:01:31]} 26. Bb3 {[%clk 0:01:37]}  Na5 {[%clk 0:01:32]} 27. Bc2 {[%clk 0:01:37]}  Re8 {[%clk 0:01:32]} 28. Qb1 {[%clk 0:01:36]}  Rxe1+ {[%clk 0:01:29]} 29. Qxe1 {[%clk 0:01:37]}  Qe7 {[%clk 0:01:29]} 30. Qc3 {[%clk 0:01:35]}  Nc6 {[%clk 0:01:27]} 31. Bb3 {[%clk 0:01:35]}  Nd8 {[%clk 0:01:26]} 32. Qd3 {[%clk 0:01:32]}  Nf7 {[%clk 0:01:24]} 33. Bc2 {[%clk 0:01:29]}  Bc7 {[%clk 0:01:23]} 34. Nh4 {[%clk 0:01:28]}  Qe1+ {[%clk 0:01:16]} 35. Kh2 {[%clk 0:01:28]}  Qe4 {[%clk 0:01:17]} 36. Qc3 {[%clk 0:01:22]}  Qxh4+ {[%clk 0:01:14]} 37. Kg1 {[%clk 0:01:22]}  Bxg3 {[%clk 0:01:14]} 38. fxg3 {[%clk 0:01:23]}  Qg5 {[%clk 0:01:14]} 39. Qc7 {[%clk 0:01:21]}  Qc1+ {[%clk 0:01:07]} 40. Kh2 {[%clk 0:01:20]}  a5 {[%clk 0:01:07]} 41. a4 {[%clk 0:01:05]}  Ba6 {[%clk 0:01:06]} 42. Qxb6 {[%clk 0:01:01]}  Qxc2 {[%clk 0:01:06]} 43. Qxa6 {[%clk 0:01:02]}  Qxa4 {[%clk 0:01:06]} 44. Qb6 {[%clk 0:01:01]}  Qb4 {[%clk 0:01:06]} 45. Qa7 {[%clk 0:00:59]}  Qxb2 {[%clk 0:01:05]} 46. Qxa5 {[%clk 0:00:58]}  Qxd4 {[%clk 0:01:05]} 47. g4 {[%clk 0:00:57]}  Qf4+ {[%clk 0:01:04]} 48. g3 {[%clk 0:00:56]}  Qf2+ {[%clk 0:01:03]} 49. Kh1 {[%clk 0:00:57]}  Ne5 {[%clk 0:00:54]} 50. Qc7+ {[%clk 0:00:55]}  Kh6 {[%clk 0:00:54]} 51. g5+ {[%clk 0:00:54]}  Kxg5 {[%clk 0:00:51]} 52. Qc1+ {[%clk 0:00:50]}  Kf5 {[%clk 0:00:45]} 53. g4+ {[%clk 0:00:49]}  Ke4 {[%clk 0:00:41]} 54. g5 {[%clk 0:00:39]}  Qh4+ {[%clk 0:00:40]} 55. Kg2 {[%clk 0:00:35]}  Qxg5+ {[%clk 0:00:41]} 0-1


[Site "https://www.chess.com"]

[Event "Titled Tuesday Blitz May 17 Late 2022"]
[White "Yuan, Qingyu"]
[Black "Grischuk, Alexander"]
[WhiteFideId "8609772"]
[BlackFideId "4126025"]
[WhiteElo "2359"]
[BlackElo "2762"]
[Result "0-1"]
[Round "06"]
[TimeControl "180+1"]
[Date "2022.05.17"]
[WhiteClock "0:00:02"]
[BlackClock "0:00:08"]

1. e4 {[%clk 0:03:00]}  e6 {[%clk 0:02:59]} 2. d4 {[%clk 0:03:00]}  d5 {[%clk 0:03:00]} 3. e5 {[%clk 0:03:00]}  c5 {[%clk 0:03:00]} 4. c3 {[%clk 0:03:01]}  Nc6 {[%clk 0:03:00]} 5. Nf3 {[%clk 0:03:01]}  Qb6 {[%clk 0:02:56]} 6. Bd3 {[%clk 0:03:02]}  cxd4 {[%clk 0:02:54]} 7. O-O {[%clk 0:03:01]}  Bd7 {[%clk 0:02:53]} 8. Re1 {[%clk 0:03:00]}  Nge7 {[%clk 0:02:52]} 9. h4 {[%clk 0:03:00]}  Rc8 {[%clk 0:02:46]} 10. Nbd2 {[%clk 0:03:00]}  Nf5 {[%clk 0:02:39]} 11. Nb3 {[%clk 0:02:47]}  dxc3 {[%clk 0:02:38]} 12. bxc3 {[%clk 0:02:48]}  Be7 {[%clk 0:02:37]} 13. h5 {[%clk 0:02:27]}  Na5 {[%clk 0:02:14]} 14. Rb1 {[%clk 0:01:51]}  Nc4 {[%clk 0:02:02]} 15. Nbd4 {[%clk 0:01:41]}  Qa6 {[%clk 0:02:02]} 16. Nxf5 {[%clk 0:01:25]}  exf5 {[%clk 0:02:03]} 17. Nd4 {[%clk 0:01:18]}  g6 {[%clk 0:02:03]} 18. Bh6 {[%clk 0:01:10]}  Be6 {[%clk 0:02:00]} 19. a4 {[%clk 0:01:07]}  Kd7 {[%clk 0:01:52]} 20. Rb5 {[%clk 0:00:52]}  Kc7 {[%clk 0:01:41]} 21. Bxc4 {[%clk 0:00:40]}  dxc4 {[%clk 0:01:42]} 22. Qf3 {[%clk 0:00:39]}  Kb8 {[%clk 0:01:35]} 23. Reb1 {[%clk 0:00:37]}  Rc7 {[%clk 0:01:35]} 24. Bf4 {[%clk 0:00:23]}  Ka8 {[%clk 0:01:29]} 25. a5 {[%clk 0:00:22]}  Rb8 {[%clk 0:01:09]} 26. h6 {[%clk 0:00:15]}  Rc5 {[%clk 0:00:46]} 27. Qe3 {[%clk 0:00:05]}  Rxb5 {[%clk 0:00:26]} 28. Nxb5 {[%clk 0:00:05]}  Rc8 {[%clk 0:00:27]} 29. Nd6 {[%clk 0:00:03]}  Bxd6 {[%clk 0:00:25]} 30. exd6 {[%clk 0:00:03]}  Qxa5 {[%clk 0:00:25]} 31. Qd4 {[%clk 0:00:03]}  Qd5 {[%clk 0:00:23]} 32. Qf6 {[%clk 0:00:02]}  Qe4 {[%clk 0:00:18]} 33. Rd1 {[%clk 0:00:02]}  Qxf4 {[%clk 0:00:18]} 34. d7 {[%clk 0:00:02]}  Bxd7 {[%clk 0:00:17]} 35. Rxd7 {[%clk 0:00:03]}  Qc1+ {[%clk 0:00:17]} 36. Kh2 {[%clk 0:00:03]}  Qxh6+ {[%clk 0:00:18]} 37. Kg1 {[%clk 0:00:04]}  Qc1+ {[%clk 0:00:18]} 38. Kh2 {[%clk 0:00:04]}  Qf4+ {[%clk 0:00:19]} 39. Kg1 {[%clk 0:00:04]}  a6 {[%clk 0:00:15]} 40. Qxf7 {[%clk 0:00:02]}  Rb8 {[%clk 0:00:14]} 41. Qxh7 {[%clk 0:00:02]}  Qc1+ {[%clk 0:00:14]} 42. Kh2 {[%clk 0:00:03]}  Qxc3 {[%clk 0:00:15]} 43. Qxg6 {[%clk 0:00:03]}  Qe5+ {[%clk 0:00:15]} 44. g3 {[%clk 0:00:03]}  f4 {[%clk 0:00:14]} 45. Rh7 {[%clk 0:00:01]}  fxg3+ {[%clk 0:00:14]} 46. fxg3 {[%clk 0:00:02]}  c3 {[%clk 0:00:14]} 47. Kh3 {[%clk 0:00:02]}  Qd5 {[%clk 0:00:12]} 48. Qc2 {[%clk 0:00:02]}  Qh1+ {[%clk 0:00:11]} 49. Kg4 {[%clk 0:00:03]}  Rg8+ {[%clk 0:00:11]} 50. Kf4 {[%clk 0:00:04]}  Qf1+ {[%clk 0:00:10]} 51. Ke5 {[%clk 0:00:04]}  Qc4 {[%clk 0:00:10]} 52. Qg2 {[%clk 0:00:02]}  Qb5+ {[%clk 0:00:09]} 53. Kf6 {[%clk 0:00:02]}  Qb6+ {[%clk 0:00:08]} 54. Kf7 {[%clk 0:00:02]}  Rc8 {[%clk 0:00:09]} 55. Kg7 {[%clk 0:00:01]}  c2 {[%clk 0:00:09]} 56. Qe4 {[%clk 0:00:01]}  c1=Q {[%clk 0:00:09]} 57. Rh6 {[%clk 0:00:02]}  Qcc7+ {[%clk 0:00:08]} 0-1


[Site "https://www.chess.com"]

[Event "Titled Tuesday Blitz May 17 Late 2022"]
[White "Zatonskih, Anna"]
[Black "Jones, Gawain C B"]
[WhiteFideId "14101572"]
[BlackFideId "409561"]
[WhiteElo "2329"]
[BlackElo "2657"]
[Result "0-1"]
[Round "06"]
[TimeControl "180+1"]
[Date "2022.05.17"]
[WhiteClock "0:00:06"]
[BlackClock "0:00:27"]

1. e4 {[%clk 0:03:00]}  c6 {[%clk 0:02:56]} 2. d4 {[%clk 0:02:58]}  d5 {[%clk 0:02:57]} 3. exd5 {[%clk 0:02:57]}  cxd5 {[%clk 0:02:57]} 4. Bd3 {[%clk 0:02:58]}  Nc6 {[%clk 0:02:57]} 5. c3 {[%clk 0:02:58]}  g6 {[%clk 0:02:57]} 6. Nf3 {[%clk 0:02:57]}  Bf5 {[%clk 0:02:57]} 7. O-O {[%clk 0:02:57]}  Nf6 {[%clk 0:02:56]} 8. Re1 {[%clk 0:02:56]}  Bxd3 {[%clk 0:02:52]} 9. Qxd3 {[%clk 0:02:56]}  Bg7 {[%clk 0:02:53]} 10. Bf4 {[%clk 0:02:56]}  O-O {[%clk 0:02:52]} 11. Nbd2 {[%clk 0:02:56]}  Re8 {[%clk 0:02:46]} 12. h3 {[%clk 0:02:55]}  Qb6 {[%clk 0:02:45]} 13. a4 {[%clk 0:02:34]}  Qa6 {[%clk 0:02:39]} 14. Qb5 {[%clk 0:02:28]}  e6 {[%clk 0:02:34]} 15. Nb3 {[%clk 0:02:25]}  Ne4 {[%clk 0:02:28]} 16. Nfd2 {[%clk 0:02:13]}  Nxd2 {[%clk 0:02:27]} 17. Bxd2 {[%clk 0:02:11]}  Qb6 {[%clk 0:02:24]} 18. Nc5 {[%clk 0:02:07]}  Bf8 {[%clk 0:02:18]} 19. Nd7 {[%clk 0:01:34]}  Qd8 {[%clk 0:02:17]} 20. Ne5 {[%clk 0:01:13]}  Nxe5 {[%clk 0:02:17]} 21. Rxe5 {[%clk 0:01:14]}  Bd6 {[%clk 0:02:15]} 22. Re2 {[%clk 0:01:11]}  Qc7 {[%clk 0:02:08]} 23. Rae1 {[%clk 0:01:08]}  Rec8 {[%clk 0:02:07]} 24. Qd3 {[%clk 0:01:01]}  a6 {[%clk 0:01:53]} 25. Bg5 {[%clk 0:00:59]}  Qc4 {[%clk 0:01:47]} 26. Qxc4 {[%clk 0:00:46]}  Rxc4 {[%clk 0:01:47]} 27. Ra1 {[%clk 0:00:46]}  b6 {[%clk 0:01:38]} 28. Kf1 {[%clk 0:00:45]}  Kg7 {[%clk 0:01:30]} 29. Bh4 {[%clk 0:00:39]}  h6 {[%clk 0:01:28]} 30. Bg3 {[%clk 0:00:36]}  Bxg3 {[%clk 0:01:27]} 31. fxg3 {[%clk 0:00:37]}  a5 {[%clk 0:01:24]} 32. Ke1 {[%clk 0:00:34]}  Kf6 {[%clk 0:01:22]} 33. Kd2 {[%clk 0:00:34]}  Ke7 {[%clk 0:01:22]} 34. Kd3 {[%clk 0:00:34]}  Rac8 {[%clk 0:01:18]} 35. Rc2 {[%clk 0:00:34]}  Kd6 {[%clk 0:01:16]} 36. Rf1 {[%clk 0:00:25]}  R4c7 {[%clk 0:01:10]} 37. Rcf2 {[%clk 0:00:22]}  f5 {[%clk 0:01:09]} 38. Re2 {[%clk 0:00:22]}  g5 {[%clk 0:01:02]} 39. Rfe1 {[%clk 0:00:19]}  Re7 {[%clk 0:01:02]} 40. Re5 {[%clk 0:00:19]}  h5 {[%clk 0:00:56]} 41. Rf1 {[%clk 0:00:18]}  Rg7 {[%clk 0:00:47]} 42. Rfe1 {[%clk 0:00:17]}  Rg6 {[%clk 0:00:47]} 43. Rb1 {[%clk 0:00:16]}  Rc4 {[%clk 0:00:46]} 44. b3 {[%clk 0:00:16]}  Rc6 {[%clk 0:00:44]} 45. b4 {[%clk 0:00:16]}  Rg8 {[%clk 0:00:43]} 46. bxa5 {[%clk 0:00:15]}  bxa5 {[%clk 0:00:43]} 47. Rb3 {[%clk 0:00:14]}  Rgc8 {[%clk 0:00:41]} 48. Re2 {[%clk 0:00:14]}  Rc4 {[%clk 0:00:41]} 49. Ra2 {[%clk 0:00:14]}  e5 {[%clk 0:00:38]} 50. dxe5+ {[%clk 0:00:13]}  Kxe5 {[%clk 0:00:39]} 51. Raa3 {[%clk 0:00:13]}  d4 {[%clk 0:00:36]} 52. Rb5+ {[%clk 0:00:13]}  Kf6 {[%clk 0:00:34]} 53. cxd4 {[%clk 0:00:13]}  Rc1 {[%clk 0:00:32]} 54. Rxa5 {[%clk 0:00:12]}  Rd1+ {[%clk 0:00:30]} 55. Ke2 {[%clk 0:00:12]}  Rxd4 {[%clk 0:00:29]} 56. Rd3 {[%clk 0:00:11]}  Rc2+ {[%clk 0:00:28]} 57. Ke3 {[%clk 0:00:11]}  Re4+ {[%clk 0:00:26]} 58. Kf3 {[%clk 0:00:06]}  g4+ {[%clk 0:00:27]} 0-1


[Site "https://www.chess.com"]

[Event "Titled Tuesday Blitz May 17 Late 2022"]
[White "Amburgy, Ryan"]
[Black "Perez Rodriguez, Jennifer"]
[WhiteFideId "30924820"]
[BlackFideId "3507831"]
[WhiteElo "2066"]
[BlackElo "2170"]
[Result "1-0"]
[Round "07"]
[TimeControl "180+1"]
[Date "2022.05.17"]
[WhiteClock "0:01:02"]
[BlackClock "0:00:37"]

1. Nf3 {[%clk 0:03:00]}  Nf6 {[%clk 0:02:58]} 2. c4 {[%clk 0:03:01]}  c5 {[%clk 0:02:57]} 3. Nc3 {[%clk 0:03:01]}  b6 {[%clk 0:02:58]} 4. e4 {[%clk 0:03:00]}  d6 {[%clk 0:02:51]} 5. d3 {[%clk 0:02:55]}  Bb7 {[%clk 0:02:51]} 6. g3 {[%clk 0:02:56]}  e6 {[%clk 0:02:48]} 7. Bg2 {[%clk 0:02:54]}  Be7 {[%clk 0:02:48]} 8. O-O {[%clk 0:02:54]}  O-O {[%clk 0:02:49]} 9. Ne1 {[%clk 0:02:47]}  d5 {[%clk 0:02:41]} 10. exd5 {[%clk 0:02:35]}  exd5 {[%clk 0:02:40]} 11. Bg5 {[%clk 0:02:35]}  Nbd7 {[%clk 0:02:22]} 12. cxd5 {[%clk 0:02:28]}  Bd6 {[%clk 0:02:14]} 13. Ne4 {[%clk 0:02:24]}  Be5 {[%clk 0:02:14]} 14. Nf3 {[%clk 0:02:17]}  h6 {[%clk 0:02:00]} 15. Nxe5 {[%clk 0:02:06]}  hxg5 {[%clk 0:01:58]} 16. Nc6 {[%clk 0:02:06]}  Bxc6 {[%clk 0:01:22]} 17. dxc6 {[%clk 0:02:07]}  Ne5 {[%clk 0:01:22]} 18. Nxg5 {[%clk 0:02:07]}  Rc8 {[%clk 0:01:19]} 19. Qa4 {[%clk 0:01:57]}  Qxd3 {[%clk 0:01:09]} 20. Rfe1 {[%clk 0:01:31]}  Rfe8 {[%clk 0:01:03]} 21. Qxa7 {[%clk 0:01:21]}  Qd2 {[%clk 0:00:50]} 22. Rxe5 {[%clk 0:01:01]}  Rxe5 {[%clk 0:00:49]} 23. Qxf7+ {[%clk 0:01:02]}  Kh8 {[%clk 0:00:48]} 24. Ne6 {[%clk 0:01:02]}  Re1+ {[%clk 0:00:38]} 25. Rxe1 {[%clk 0:01:03]}  Qxe1+ {[%clk 0:00:39]} 26. Bf1 {[%clk 0:01:03]}  Rg8 {[%clk 0:00:37]} 27. c7 {[%clk 0:01:02]} 1-0


[Site "https://www.chess.com"]

[Event "Titled Tuesday Blitz May 17 Late 2022"]
[White "Andreikin, Dmitry"]
[Black "Holt, Conrad"]
[WhiteFideId "4158814"]
[BlackFideId "2034387"]
[WhiteElo "2736"]
[BlackElo "2586"]
[Result "1/2-1/2"]
[Round "07"]
[TimeControl "180+1"]
[Date "2022.05.17"]
[WhiteClock "0:00:04"]
[BlackClock "0:00:08"]

1. d4 {[%clk 0:03:00]}  d5 {[%clk 0:02:57]} 2. c4 {[%clk 0:03:01]}  c6 {[%clk 0:02:57]} 3. Nf3 {[%clk 0:03:00]}  Nf6 {[%clk 0:02:56]} 4. Qc2 {[%clk 0:03:00]}  dxc4 {[%clk 0:02:56]} 5. e4 {[%clk 0:03:01]}  b5 {[%clk 0:02:53]} 6. b3 {[%clk 0:03:01]}  cxb3 {[%clk 0:02:52]} 7. axb3 {[%clk 0:03:02]}  e6 {[%clk 0:02:52]} 8. Bd3 {[%clk 0:03:02]}  Be7 {[%clk 0:02:45]} 9. O-O {[%clk 0:03:02]}  Bb7 {[%clk 0:02:39]} 10. Bd2 {[%clk 0:02:58]}  a5 {[%clk 0:02:39]} 11. Nc3 {[%clk 0:02:58]}  Na6 {[%clk 0:02:33]} 12. e5 {[%clk 0:02:54]}  Nb4 {[%clk 0:02:31]} 13. exf6 {[%clk 0:02:55]}  Nxc2 {[%clk 0:02:31]} 14. fxe7 {[%clk 0:02:55]}  Qxe7 {[%clk 0:02:30]} 15. Bxc2 {[%clk 0:02:55]}  c5 {[%clk 0:02:22]} 16. Ne4 {[%clk 0:02:12]}  cxd4 {[%clk 0:02:00]} 17. Nxd4 {[%clk 0:02:12]}  O-O {[%clk 0:01:48]} 18. Be3 {[%clk 0:01:52]}  Rfc8 {[%clk 0:01:31]} 19. Bb1 {[%clk 0:01:25]}  Qb4 {[%clk 0:01:22]} 20. Nd2 {[%clk 0:01:05]}  a4 {[%clk 0:01:12]} 21. h3 {[%clk 0:00:47]}  a3 {[%clk 0:01:04]} 22. Ra2 {[%clk 0:00:44]}  e5 {[%clk 0:00:52]} 23. Nc2 {[%clk 0:00:43]}  Qd6 {[%clk 0:00:49]} 24. b4 {[%clk 0:00:41]}  Bd5 {[%clk 0:00:33]} 25. Bc5 {[%clk 0:00:23]}  Rxc5 {[%clk 0:00:20]} 26. bxc5 {[%clk 0:00:23]}  Qxc5 {[%clk 0:00:20]} 27. Ra1 {[%clk 0:00:19]}  a2 {[%clk 0:00:19]} 28. Ne3 {[%clk 0:00:19]}  axb1=Q {[%clk 0:00:19]} 29. Raxb1 {[%clk 0:00:19]}  Be6 {[%clk 0:00:19]} 30. Ne4 {[%clk 0:00:18]}  Qd4 {[%clk 0:00:18]} 31. Ng5 {[%clk 0:00:17]}  Bd7 {[%clk 0:00:13]} 32. Rfd1 {[%clk 0:00:15]}  Qa7 {[%clk 0:00:13]} 33. Nd5 {[%clk 0:00:14]}  h6 {[%clk 0:00:13]} 34. Nf3 {[%clk 0:00:13]}  e4 {[%clk 0:00:10]} 35. Nd4 {[%clk 0:00:11]}  Rb8 {[%clk 0:00:09]} 36. Nc3 {[%clk 0:00:09]}  b4 {[%clk 0:00:08]} 37. Nxe4 {[%clk 0:00:09]}  Qa5 {[%clk 0:00:05]} 38. Nb3 {[%clk 0:00:09]}  Qe5 {[%clk 0:00:05]} 39. Nec5 {[%clk 0:00:07]}  Bf5 {[%clk 0:00:05]} 40. Rbc1 {[%clk 0:00:06]}  Rc8 {[%clk 0:00:04]} 41. Rd4 {[%clk 0:00:05]}  Qb8 {[%clk 0:00:02]} 42. Rcd1 {[%clk 0:00:04]}  Be6 {[%clk 0:00:02]} 43. Nxe6 {[%clk 0:00:03]}  fxe6 {[%clk 0:00:03]} 44. Re4 {[%clk 0:00:02]}  Rc3 {[%clk 0:00:03]} 45. Nd4 {[%clk 0:00:02]}  Qb7 {[%clk 0:00:02]} 46. Rxe6 {[%clk 0:00:02]}  b3 {[%clk 0:00:03]} 47. Nxb3 {[%clk 0:00:02]}  Rxb3 {[%clk 0:00:03]} 48. Red6 {[%clk 0:00:01]}  Rb2 {[%clk 0:00:03]} 49. Rd7 {[%clk 0:00:01]}  Qb6 {[%clk 0:00:03]} 50. R7d4 {[%clk 0:00:02]}  Qb5 {[%clk 0:00:03]} 51. Rf1 {[%clk 0:00:01]}  Kh7 {[%clk 0:00:04]} 52. h4 {[%clk 0:00:01]}  Rb1 {[%clk 0:00:04]} 53. Rxb1 {[%clk 0:00:01]}  Qxb1+ {[%clk 0:00:05]} 54. Kh2 {[%clk 0:00:02]}  Qe1 {[%clk 0:00:06]} 55. Rf4 {[%clk 0:00:01]}  Qe5 {[%clk 0:00:06]} 56. g3 {[%clk 0:00:02]}  Kg6 {[%clk 0:00:06]} 57. Kg2 {[%clk 0:00:02]}  Qd5+ {[%clk 0:00:06]} 58. Kg1 {[%clk 0:00:03]}  Kh5 {[%clk 0:00:07]} 59. Kh2 {[%clk 0:00:02]}  g5 {[%clk 0:00:06]} 60. hxg5 {[%clk 0:00:03]}  hxg5 {[%clk 0:00:07]} 61. Rf8 {[%clk 0:00:03]}  Kg4 {[%clk 0:00:07]} 62. f3+ {[%clk 0:00:04]}  Kh5 {[%clk 0:00:04]} 63. g4+ {[%clk 0:00:04]}  Kg6 {[%clk 0:00:05]} 64. Rf5 {[%clk 0:00:04]}  Qd2+ {[%clk 0:00:05]} 65. Kg3 {[%clk 0:00:04]}  Qd1 {[%clk 0:00:05]} 66. Kg2 {[%clk 0:00:04]}  Qe1 {[%clk 0:00:06]} 67. Rf8 {[%clk 0:00:03]}  Qd2+ {[%clk 0:00:05]} 68. Kg1 {[%clk 0:00:03]}  Qc1+ {[%clk 0:00:06]} 69. Kg2 {[%clk 0:00:04]}  Qb2+ {[%clk 0:00:06]} 70. Kg3 {[%clk 0:00:04]}  Qb6 {[%clk 0:00:05]} 71. Rf5 {[%clk 0:00:04]}  Qb8+ {[%clk 0:00:06]} 72. Kg2 {[%clk 0:00:04]}  Qa8 {[%clk 0:00:06]} 73. Kf2 {[%clk 0:00:04]}  Qd8 {[%clk 0:00:06]} 74. Kg2 {[%clk 0:00:04]}  Qd1 {[%clk 0:00:06]} 75. Kf2 {[%clk 0:00:04]}  Qh1 {[%clk 0:00:07]} 76. Ke3 {[%clk 0:00:04]}  Qg2 {[%clk 0:00:06]} 77. Kd3 {[%clk 0:00:04]}  Qf2 {[%clk 0:00:06]} 78. Ke4 {[%clk 0:00:05]}  Qe2+ {[%clk 0:00:06]} 79. Kd4 {[%clk 0:00:05]}  Qe1 {[%clk 0:00:06]} 80. Kd3 {[%clk 0:00:05]}  Qf2 {[%clk 0:00:06]} 81. Ke4 {[%clk 0:00:06]}  Qd2 {[%clk 0:00:06]} 82. Ke5 {[%clk 0:00:04]}  Qe3+ {[%clk 0:00:07]} 83. Kd5 {[%clk 0:00:04]}  Kg7 {[%clk 0:00:07]} 84. Kc4 {[%clk 0:00:04]}  Kg6 {[%clk 0:00:06]} 85. Kd5 {[%clk 0:00:04]}  Qe2 {[%clk 0:00:07]} 86. Kd4 {[%clk 0:00:05]}  Qe6 {[%clk 0:00:06]} 87. Kd3 {[%clk 0:00:04]}  Qe7 {[%clk 0:00:06]} 88. Kd4 {[%clk 0:00:04]}  Qe2 {[%clk 0:00:06]} 89. Kd5 {[%clk 0:00:04]}  Qe3 {[%clk 0:00:07]} 90. Kc4 {[%clk 0:00:04]}  Qd2 {[%clk 0:00:07]} 91. Kc5 {[%clk 0:00:03]}  Qd3 {[%clk 0:00:08]} 92. Kc6 {[%clk 0:00:03]}  Qd4 {[%clk 0:00:08]} 93. Kc7 {[%clk 0:00:04]}  Qc4+ {[%clk 0:00:08]} 94. Kd6 {[%clk 0:00:04]}  Qd3+ {[%clk 0:00:08]} 95. Ke5 {[%clk 0:00:04]}  Qe3+ {[%clk 0:00:08]} 96. Kd5 {[%clk 0:00:04]} 1/2-1/2


[Site "https://www.chess.com"]